fUST/lending_fUST_20240220
["ID","MTS","AMOUNT","RATE_DAILY","PERIOD"]
[314459065,1708367455979,-905.61,0.00028767,2]
[314459067,1708367455989,-727.06,0.00028767,2]
[314459069,1708367455998,-907.37,0.00028767,2]
[314459071,1708367456008,-245.32427598,0.00028767,2]
[314459073,1708367456018,-385.11112956,0.00028767,2]
[314459076,1708367456027,-500.0,0.00028767,2]
[314459077,1708367456037,-500.0,0.00028767,2]
[314459080,1708367456047,-500.0,0.00028767,2]
[314459082,1708367456056,-1074.74,0.00028767,2]
[314459084,1708367456065,-500.0,0.00028767,2]
[314459085,1708367456074,-500.0,0.00028767,2]
[314459088,1708367456083,-500.0,0.00028767,2]
[314459090,1708367456093,-500.0,0.00028767,2]
[314459092,1708367456102,-1690.29,0.00028767,2]
[314459094,1708367456112,-500.0,0.00028767,2]
[314459096,1708367456121,-500.0,0.00028767,2]
[314459098,1708367456130,-500.0,0.00028767,2]
[314459100,1708367456140,-500.0,0.00028767,2]
[314459102,1708367456150,-4924.96,0.00028767,2]
[314459104,1708367456159,-559.94,0.00028767,2]
[314459106,1708367456168,-2916.3,0.00028767,2]
[314459108,1708367456177,-3521.91,0.00028767,2]
[314459110,1708367456188,-500.0,0.00028767,2]
[314459112,1708367456198,-3532.56,0.00028767,2]
[314459114,1708367456207,-2054.58,0.00028767,2]
[314459116,1708367456216,-500.0,0.00028767,2]
[314459118,1708367456225,-2379.85,0.00028767,2]
[314459120,1708367456234,-500.0,0.00028767,2]
[314459122,1708367456247,-500.0,0.00028767,2]
[314459124,1708367456256,-9364.8,0.00028767,2]
[314459127,1708367456266,-1083.26,0.00028767,2]
[314459129,1708367456276,-500.0,0.00028767,2]
[314459131,1708367456285,-690.81,0.00028767,2]
[314459133,1708367456295,-155.0,0.00028767,2]
[314459135,1708367456304,-1048.44,0.00028767,2]
[314459137,1708367456313,-1633.78,0.00028767,2]
[314459139,1708367456322,-500.0,0.00028767,2]
[314459141,1708367456332,-12732.29,0.00028767,2]
[314459143,1708367456341,-17905.74,0.00028767,2]
[314459145,1708367456350,-25345.28,0.00028767,2]
[314459147,1708367456360,-500.0,0.00028767,2]
[314459149,1708367456369,-3571.69,0.00028767,2]
[314459151,1708367456378,-1501.7,0.00028767,2]
[314459153,1708367456388,-19882.51,0.00028767,2]
[314459155,1708367456397,-500.0,0.00028767,2]
[314459157,1708367456407,-500.0,0.00028767,2]
[314459159,1708367456416,-500.0,0.00028767,2]
[314459161,1708367456426,-520.96663066,0.00028767,2]
[314459163,1708367456435,-12867.4,0.00028767,2]
[314459165,1708367456444,-2687.22,0.00028767,2]
[314459167,1708367456453,-28999.91,0.00028767,2]
[314459169,1708367456462,-3171.61,0.00028767,2]
[314459171,1708367456472,-660.77,0.00028767,2]
[314459173,1708367456481,-500.0,0.00028767,2]
[314459175,1708367456492,-500.0,0.00028767,2]
[314459177,1708367456501,-500.0,0.00028767,2]
[314459179,1708367456511,-500.0,0.00028767,2]
[314459182,1708367456521,-500.0,0.00028767,2]
[314459197,1708367456659,-4036.49,0.00028767,2]
[314459199,1708367456669,-2908.73,0.00028767,2]
[314459201,1708367456678,-2728.08,0.00028767,2]
[314459203,1708367456688,-444.969711,0.00028767,2]
[314459205,1708367456698,-444.969711,0.00028767,2]
[314459207,1708367456708,-444.969711,0.00028767,2]
[314459209,1708367456718,-444.969711,0.00028767,2]
[314459211,1708367456727,-1394.32,0.00028767,2]
[314459213,1708367456737,-3595.38,0.00028767,2]
[314459215,1708367456747,-500.0,0.00028767,2]
[314459217,1708367456756,-637.71,0.00028767,2]
[314459219,1708367456766,-538.21,0.00028767,2]
[314459221,1708367456775,-500.0,0.00028767,2]
[314459223,1708367456784,-500.0,0.00028767,2]
[314459225,1708367456793,-500.0,0.00028767,2]
[314459227,1708367456802,-500.0,0.00028767,2]
[314459229,1708367456811,-500.0,0.00028767,2]
[314459231,1708367456820,-5332.66,0.00028767,2]
[314459233,1708367456830,-500.0,0.00028767,2]
[314459235,1708367456839,-500.0,0.00028767,2]
[314459237,1708367456848,-2281.65,0.00028767,2]
[314459239,1708367456857,-500.0,0.00028767,2]
[314459241,1708367456867,-601.93,0.00028767,2]
[314459243,1708367456876,-617.18,0.00028767,2]
[314459244,1708367456885,-500.0,0.00028767,2]
[314459246,1708367456894,-537.12,0.00028767,2]
[314459248,1708367456904,-955.79,0.00028767,2]
[314459250,1708367456914,-872.49,0.00028767,2]
[314459252,1708367456924,-4204.18,0.00028788,2]
[314459254,1708367456933,-4204.18,0.00028788,2]
[314459256,1708367456943,-4204.18,0.00028788,2]
[314459258,1708367456952,-4204.18,0.00028788,2]
[314459260,1708367456962,-4204.18,0.00028788,2]
[314459262,1708367456971,-4204.18,0.00028788,2]
[314459264,1708367456980,-4204.18,0.00028788,2]
[314459266,1708367456990,-4204.18,0.00028788,2]
[314459268,1708367456999,-4204.18,0.00028788,2]
[314459270,1708367457008,-4204.18,0.00028788,2]
[314459272,1708367457018,-444.969711,0.00028788,2]
[314459274,1708367457027,-444.969715,0.00028788,2]
[314459276,1708367457037,-20000.0,0.00028789,7]
[314459278,1708367457046,-1410.49093507,0.00028792,2]
[314459280,1708367457055,-155.694993,0.00028823,2]
[314459282,1708367457064,-266.303242,0.00028823,2]
[314459284,1708367457073,-405.844811,0.00028823,2]
[314459286,1708367457082,-601.123714,0.00028823,2]
[314459288,1708367457091,-622.66935921,0.00028892,2]
[314459290,1708367457100,-300.0,0.00028916,2]
[314459292,1708367457109,-836.47359045,0.00029,2]
[314459294,1708367457118,-1000.0,0.00029,29]
[314459296,1708367457127,-540.217285,0.00029,15]
[314459298,1708367457137,-500.0,0.00029,2]
[314459300,1708367457146,-5745.78406365,0.00029,2]
[314459302,1708367457155,-1834.05967255,0.00029,2]
[314459304,1708367457164,-19984.12365555,0.00029,2]
[314459306,1708367457173,-495.370212,0.00029035,2]
[314459308,1708367457182,-293.186823,0.00029035,2]
[314459310,1708367457191,-283.527284,0.00029035,2]
[314459312,1708367457200,-561.72095,0.00029035,2]
[314459314,1708367457209,-177.104667,0.00029035,2]
[314459316,1708367457219,-157.515159,0.00029035,2]
[314459318,1708367457228,-500.0,0.00029041,2]
[314459320,1708367457237,-912.93,0.00029041,2]
[314459322,1708367457247,-811.21,0.00029041,2]
[314459323,1708367457256,-500.0,0.00029041,2]
[314459325,1708367457265,-846.15,0.00029041,2]
[314459327,1708367457274,-500.0,0.00029041,2]
[314459330,1708367457284,-500.0,0.00029041,2]
[314459331,1708367457293,-500.0,0.00029041,2]
[314459333,1708367457302,-500.0,0.00029041,2]
[314459335,1708367457311,-500.0,0.00029041,2]
[314459337,1708367457321,-500.0,0.00029041,2]
[314459339,1708367457330,-519.57,0.00029041,2]
[314459342,1708367457339,-500.0,0.00029041,2]
[314459343,1708367457348,-500.0,0.00029041,15]
[314459345,1708367457357,-500.0,0.00029041,2]
[314459347,1708367457366,-500.0,0.00029041,2]
[314459349,1708367457375,-1057.96,0.00029041,2]
[314459351,1708367457384,-500.0,0.00029041,2]
[314459353,1708367457393,-500.0,0.00029041,2]
[314459355,1708367457403,-500.0,0.00029041,2]
[314459357,1708367457412,-766.65,0.00029041,2]
[314459359,1708367457421,-500.0,0.00029041,2]
[314459361,1708367457430,-500.0,0.00029041,2]
[314459363,1708367457439,-500.0,0.00029041,2]
[314459365,1708367457449,-2644.18,0.00029041,2]
[314459367,1708367457458,-1570.66,0.00029041,2]
[314459369,1708367457467,-500.0,0.00029041,2]
[314459371,1708367457477,-500.0,0.00029041,2]
[314459373,1708367457487,-578.18,0.00029041,2]
[314459375,1708367457496,-1176.49,0.00029041,2]
[314459377,1708367457506,-500.0,0.00029041,2]
[314459379,1708367457515,-500.0,0.00029041,2]
[314459381,1708367457525,-500.0,0.00029041,2]
[314459383,1708367457535,-500.0,0.00029041,2]
[314459385,1708367457544,-500.0,0.00029041,2]
[314459388,1708367457554,-500.0,0.00029041,2]
[314459390,1708367457564,-500.0,0.00029041,2]
[314459391,1708367457573,-500.0,0.00029041,2]
[314459393,1708367457583,-500.0,0.00029041,2]
[314459396,1708367457592,-787.53,0.00029041,2]
[314459397,1708367457602,-500.0,0.00029041,2]
[314459400,1708367457611,-500.0,0.00029041,2]
[314459401,1708367457621,-500.0,0.00029041,2]
[314459403,1708367457634,-500.0,0.00029041,2]
[314459405,1708367457643,-500.0,0.00029041,2]
[314459407,1708367457652,-1043.11,0.00029041,2]
[314459409,1708367457662,-1874.04,0.00029041,2]
[314459411,1708367457673,-500.0,0.00029041,2]
[314459414,1708367457682,-603.72,0.00029041,2]
[314459415,1708367457691,-500.0,0.00029041,2]
[314459417,1708367457702,-500.0,0.00029041,2]
[314459419,1708367457711,-500.0,0.00029041,2]
[314459421,1708367457721,-500.0,0.00029041,2]
[314459423,1708367457730,-1750.47,0.00029041,2]
[314459426,1708367457741,-500.0,0.00029041,2]
[314459427,1708367457750,-1118.02,0.00029041,2]
[314459430,1708367457760,-500.0,0.00029041,2]
[314459432,1708367457769,-500.0,0.00029041,2]
[314459433,1708367457778,-500.0,0.00029041,2]
[314459436,1708367457787,-500.0,0.00029041,2]
[314459437,1708367457798,-586.37,0.00029041,2]
[314459440,1708367457807,-500.0,0.00029041,2]
[314459441,1708367457816,-4816.66,0.00029041,2]
[314459443,1708367457825,-577.82,0.00029041,2]
[314459445,1708367457834,-516.47,0.00029041,2]
[314459447,1708367457842,-500.0,0.00029041,2]
[314459449,1708367457852,-500.0,0.00029041,2]
[314459451,1708367457861,-500.0,0.00029041,2]
[314459453,1708367457870,-2333.29,0.00029041,2]
[314459455,1708367457879,-500.0,0.00029041,2]
[314459457,1708367457888,-4378.32,0.00029041,2]
[314459459,1708367457897,-500.0,0.00029041,2]
[314459461,1708367457905,-910.01,0.00029041,2]
[314459463,1708367457914,-581.06347934,0.00029041,2]
[314459465,1708367457923,-797.47,0.00029041,2]
[314459467,1708367457933,-151.0,0.00029041,2]
[314459470,1708367457943,-500.0,0.00029041,2]
[314459471,1708367457952,-279.47720025,0.00029041,2]
[314459473,1708367457962,-284.214656,0.00029041,2]
[314459475,1708367457972,-284.214656,0.00029041,2]
[314459477,1708367457981,-500.0,0.00029041,2]
[314459479,1708367457992,-500.0,0.00029041,2]
[314459481,1708367458001,-500.0,0.00029041,2]
[314459483,1708367458011,-905.61,0.00029041,2]
[314459485,1708367458020,-727.06,0.00029041,2]
[314459487,1708367458030,-907.37,0.00029041,2]
[314459489,1708367458039,-500.0,0.00029041,2]
[314459491,1708367458048,-500.0,0.00029041,2]
[314459494,1708367458058,-500.0,0.00029041,2]
[314459495,1708367458067,-1074.74,0.00029041,2]
[314459497,1708367458076,-500.0,0.00029041,2]
[314459499,1708367458085,-500.0,0.00029041,2]
[314459501,1708367458094,-500.0,0.00029041,2]
[314459503,1708367458103,-500.0,0.00029041,2]
[314459505,1708367458112,-1690.29,0.00029041,2]
[314459507,1708367458121,-500.0,0.00029041,2]
[314459509,1708367458130,-500.0,0.00029041,2]
[314459511,1708367458139,-500.0,0.00029041,2]
[314459513,1708367458148,-511.85544182,0.00029041,2]
[314459515,1708367458157,-4924.96,0.00029041,2]
[314459517,1708367458167,-559.94,0.00029041,2]
[314459519,1708367458176,-2916.3,0.00029041,2]
[314459520,1708367458185,-3521.91,0.00029041,2]
[314459521,1708367458194,-500.0,0.00029041,2]
[314459522,1708367458203,-3532.56,0.00029041,2]
[314459523,1708367458211,-2054.58,0.00029041,2]
[314459524,1708367458220,-500.0,0.00029041,2]
[314459525,1708367458230,-2379.85,0.00029041,2]
[314459526,1708367458240,-296.10959893,0.00029041,2]
[314459527,1708367458249,-500.0,0.00029041,2]
[314459528,1708367458258,-9364.8,0.00029041,2]
[314459529,1708367458267,-1083.26,0.00029041,2]
[314459530,1708367458276,-500.0,0.00029041,2]
[314459531,1708367458285,-690.81,0.00029041,2]
[314459532,1708367458295,-1048.44,0.00029041,2]
[314459533,1708367458308,-1633.78,0.00029041,2]
[314459534,1708367458317,-500.0,0.00029041,2]
[314459535,1708367458326,-12732.29,0.00029041,2]
[314459537,1708367458336,-17905.74,0.00029041,2]
[314459539,1708367458345,-25345.28,0.00029041,2]
[314459541,1708367458354,-500.0,0.00029041,2]
[314459543,1708367458363,-3571.69,0.00029041,2]
[314459545,1708367458372,-1501.7,0.00029041,2]
[314459547,1708367458381,-19882.51,0.00029041,2]
[314459549,1708367458389,-500.0,0.00029041,2]
[314459551,1708367458398,-500.0,0.00029041,2]
[314459553,1708367458407,-500.0,0.00029041,2]
[314459555,1708367458416,-12867.4,0.00029041,2]
[314459557,1708367458425,-2687.22,0.00029041,2]
[314459559,1708367458435,-28999.91,0.00029041,2]
[314459561,1708367458444,-3171.61,0.00029041,2]
[314459563,1708367458454,-660.77,0.00029041,2]
[314459565,1708367458463,-500.0,0.00029041,2]
[314459567,1708367458473,-500.0,0.00029041,2]
[314459569,1708367458483,-500.0,0.00029041,2]
[314459571,1708367458494,-500.0,0.00029041,2]
[314459573,1708367458505,-500.0,0.00029041,2]
[314459575,1708367458514,-4036.49,0.00029041,2]
[314459577,1708367458524,-2908.73,0.00029041,2]
[314459578,1708367458533,-2728.08,0.00029041,2]
[314459580,1708367458543,-1394.32,0.00029041,2]
[314459582,1708367458553,-3595.38,0.00029041,2]
[314459584,1708367458562,-500.0,0.00029041,2]
[314459587,1708367458572,-637.71,0.00029041,2]
[314459589,1708367458582,-538.21,0.00029041,2]
[314459591,1708367458592,-574.00958972,0.00029041,2]
[314459592,1708367458601,-500.0,0.00029041,2]
[314459594,1708367458611,-500.0,0.00029041,2]
[314459596,1708367458621,-500.0,0.00029041,2]
[314459599,1708367458635,-500.0,0.00029041,2]
[314459601,1708367458644,-500.0,0.00029041,2]
[314459603,1708367458654,-5332.66,0.00029041,2]
[314459605,1708367458664,-500.0,0.00029041,2]
[314459607,1708367458675,-2281.65,0.00029041,2]
[314459609,1708367458684,-500.0,0.00029041,2]
[314459611,1708367458695,-601.93,0.00029041,2]
[314459613,1708367458706,-617.18,0.00029041,2]
[314459615,1708367458716,-500.0,0.00029041,2]
[314459617,1708367458725,-537.12,0.00029041,2]
[314459619,1708367458734,-955.79,0.00029041,2]
[314459621,1708367458744,-872.49,0.00029041,2]
[314459623,1708367458753,-1410.49093507,0.00029091,2]
[314459625,1708367458762,-300.0,0.00029174,2]
[314459627,1708367458771,-155.694993,0.00029174,2]
[314459629,1708367458780,-266.303242,0.00029174,2]
[314459630,1708367458789,-405.844811,0.00029174,2]
[314459632,1708367458798,-601.123714,0.00029174,2]
[314459634,1708367458807,-500.0,0.00029315,2]
[314459636,1708367458816,-912.93,0.00029315,2]
[314459638,1708367458825,-811.21,0.00029315,2]
[314459640,1708367458834,-500.0,0.00029315,2]
[314459643,1708367458844,-846.15,0.00029315,2]
[314459644,1708367458853,-500.0,0.00029315,2]
[314459647,1708367458862,-500.0,0.00029315,2]
[314459649,1708367458871,-500.0,0.00029315,2]
[314459651,1708367458880,-500.0,0.00029315,2]
[314459653,1708367458889,-646.92227353,0.00029315,2]
[314459655,1708367458898,-500.0,0.00029315,2]
[314459657,1708367458907,-519.57,0.00029315,2]
[314459658,1708367458916,-500.0,0.00029315,2]
[314459660,1708367458925,-500.0,0.00029315,15]
[314459662,1708367458933,-500.0,0.00029315,2]
[314459664,1708367458942,-500.0,0.00029315,2]
[314459666,1708367458952,-1057.96,0.00029315,2]
[314459668,1708367458961,-500.0,0.00029315,2]
[314459670,1708367458971,-500.0,0.00029315,2]
[314459672,1708367458980,-500.0,0.00029315,2]
[314459674,1708367458989,-766.65,0.00029315,2]
[314459676,1708367458999,-500.0,0.00029315,2]
[314459678,1708367459008,-569.93489567,0.00029315,2]
[314459680,1708367459017,-500.0,0.00029315,2]
[314459682,1708367459026,-2644.18,0.00029315,2]
[314459684,1708367459035,-1570.66,0.00029315,2]
[314459686,1708367459044,-500.0,0.00029315,2]
[314459688,1708367459053,-500.0,0.00029315,2]
[314459690,1708367459062,-578.18,0.00029315,2]
[314459692,1708367459073,-1176.49,0.00029315,2]
[314459694,1708367459082,-500.0,0.00029315,2]
[314459696,1708367459092,-500.0,0.00029315,2]
[314459698,1708367459101,-500.0,0.00029315,2]
[314459700,1708367459110,-500.0,0.00029315,2]
[314459702,1708367459120,-500.0,0.00029315,2]
[314459704,1708367459128,-500.0,0.00029315,2]
[314459706,1708367459137,-500.0,0.00029315,2]
[314459708,1708367459147,-500.0,0.00029315,2]
[314459710,1708367459157,-500.0,0.00029315,2]
[314459712,1708367459166,-787.53,0.00029315,2]
[314459714,1708367459176,-500.0,0.00029315,2]
[314459716,1708367459186,-416.04635205,0.00029315,2]
[314459718,1708367459195,-500.0,0.00029315,2]
[314459720,1708367459204,-500.0,0.00029315,2]
[314459722,1708367459213,-500.0,0.00029315,2]
[314459724,1708367459222,-1043.11,0.00029315,2]
[314459726,1708367459231,-1874.04,0.00029315,2]
[314459728,1708367459244,-500.0,0.00029315,2]
[314459731,1708367459253,-603.72,0.00029315,2]
[314459733,1708367459263,-212.50489556,0.00029315,2]
[314459734,1708367459272,-500.0,0.00029315,2]
[314459736,1708367459282,-500.0,0.00029315,2]
[314459739,1708367459291,-199.92478488,0.00029315,2]
[314459740,1708367459301,-1750.47,0.00029315,2]
[314459742,1708367459310,-500.0,0.00029315,2]
[314459744,1708367459320,-1118.02,0.00029315,2]
[314459747,1708367459329,-287.16617659,0.00029315,2]
[314459748,1708367459339,-500.0,0.00029315,2]
[314459750,1708367459349,-500.0,0.00029315,2]
[314459752,1708367459358,-500.0,0.00029315,2]
[314459754,1708367459368,-586.37,0.00029315,2]
[314459757,1708367459378,-500.0,0.00029315,2]
[314459759,1708367459387,-4816.66,0.00029315,2]
[314459760,1708367459397,-577.82,0.00029315,2]
[314459763,1708367459407,-516.47,0.00029315,2]
[314459765,1708367459416,-500.0,0.00029315,2]
[314459766,1708367459425,-500.0,0.00029315,2]
[314459769,1708367459435,-500.0,0.00029315,2]
[314459771,1708367459444,-2333.29,0.00029315,2]
[314459773,1708367459454,-500.0,0.00029315,2]
[314459775,1708367459463,-4378.32,0.00029315,2]
[314459777,1708367459472,-500.0,0.00029315,2]
[314459779,1708367459482,-910.01,0.00029315,2]
[314459780,1708367459493,-797.47,0.00029315,2]
[314459782,1708367459502,-151.0,0.00029315,2]
[314459784,1708367459511,-500.0,0.00029315,2]
[314459786,1708367459520,-500.0,0.00029315,2]
[314459788,1708367459530,-500.0,0.00029315,2]
[314459790,1708367459538,-500.0,0.00029315,2]
[314459792,1708367459548,-905.61,0.00029315,2]
[314459794,1708367459558,-727.06,0.00029315,2]
[314459796,1708367459567,-907.37,0.00029315,2]
[314459798,1708367459577,-500.0,0.00029315,2]
[314459801,1708367459586,-500.0,0.00029315,2]
[314459802,1708367459596,-271.31300601,0.00029315,2]
[314459805,1708367459606,-1074.74,0.00029315,2]
[314459807,1708367459617,-500.0,0.00029315,2]
[314459809,1708367459628,-500.0,0.00029315,2]
[314459811,1708367459638,-504.11816739,0.00029315,2]
[314459812,1708367459647,-500.0,0.00029315,2]
[314459814,1708367459658,-1690.29,0.00029315,2]
[314459816,1708367459668,-500.0,0.00029315,2]
[314459818,1708367459677,-500.0,0.00029315,2]
[314459821,1708367459687,-500.0,0.00029315,2]
[314459823,1708367459698,-4924.96,0.00029315,2]
[314459825,1708367459708,-559.94,0.00029315,2]
[314459826,1708367459717,-2916.3,0.00029315,2]
[314459829,1708367459727,-3521.91,0.00029315,2]
[314459830,1708367459738,-500.0,0.00029315,2]
[314459832,1708367459748,-3532.56,0.00029315,2]
[314459834,1708367459757,-2054.58,0.00029315,2]
[314459836,1708367459767,-276.78564724,0.00029315,2]
[314459838,1708367459776,-2379.85,0.00029315,2]
[314459840,1708367459786,-500.0,0.00029315,2]
[314459842,1708367459795,-9364.8,0.00029315,2]
[314459845,1708367459805,-1083.26,0.00029315,2]
[314459847,1708367459814,-644.31465188,0.00029315,2]
[314459848,1708367459824,-690.81,0.00029315,2]
[314459851,1708367459833,-1048.44,0.00029315,2]
[314459866,1708367459968,-1633.78,0.00029315,2]
[314459868,1708367459978,-500.0,0.00029315,2]
[314459870,1708367459988,-12732.29,0.00029315,2]
[314459872,1708367459997,-17905.74,0.00029315,2]
[314459874,1708367460006,-25345.28,0.00029315,2]
[314459876,1708367460015,-173.78317828,0.00029315,2]
[314459878,1708367460025,-3571.69,0.00029315,2]
[314459880,1708367460035,-1501.7,0.00029315,2]
[314459882,1708367460044,-19882.51,0.00029315,2]
[314459884,1708367460054,-500.0,0.00029315,2]
[314459886,1708367460063,-500.0,0.00029315,2]
[314459888,1708367460073,-500.0,0.00029315,2]
[314459890,1708367460084,-12867.4,0.00029315,2]
[314459892,1708367460094,-2687.22,0.00029315,2]
[314459894,1708367460103,-28999.91,0.00029315,2]
[314459896,1708367460113,-3171.61,0.00029315,2]
[314459898,1708367460122,-660.77,0.00029315,2]
[314459900,1708367460131,-500.0,0.00029315,2]
[314459902,1708367460140,-500.0,0.00029315,2]
[314459904,1708367460149,-500.0,0.00029315,2]
[314459906,1708367460158,-500.0,0.00029315,2]
[314459908,1708367460167,-500.0,0.00029315,2]
[314459910,1708367460176,-4036.49,0.00029315,2]
[314459912,1708367460186,-2908.73,0.00029315,2]
[314459914,1708367460195,-2728.08,0.00029315,2]
[314459916,1708367460204,-1394.32,0.00029315,2]
[314459918,1708367460213,-3595.38,0.00029315,2]
[314459920,1708367460222,-500.0,0.00029315,2]
[314459922,1708367460231,-637.71,0.00029315,2]
[314459924,1708367460241,-538.21,0.00029315,2]
[314459926,1708367460250,-500.0,0.00029315,2]
[314459928,1708367460260,-500.0,0.00029315,2]
[314459930,1708367460269,-500.0,0.00029315,2]
[314459932,1708367460279,-500.0,0.00029315,2]
[314459934,1708367460288,-500.0,0.00029315,2]
[314459936,1708367460298,-5332.66,0.00029315,2]
[314459938,1708367460307,-500.0,0.00029315,2]
[314459940,1708367460319,-2281.65,0.00029315,2]
[314459942,1708367460328,-500.0,0.00029315,2]
[314459944,1708367460338,-601.93,0.00029315,2]
[314459946,1708367460347,-617.18,0.00029315,2]
[314459948,1708367460357,-500.0,0.00029315,2]
[314459950,1708367460367,-537.12,0.00029315,2]
[314459952,1708367460376,-955.79,0.00029315,2]
[314459954,1708367460385,-872.49,0.00029315,2]
[314459956,1708367460394,-1410.49093507,0.0002939,2]
[314459958,1708367460403,-495.370212,0.00029398,2]
[314459960,1708367460412,-293.186823,0.00029398,2]
[314459962,1708367460421,-561.72095,0.00029398,2]
[314459964,1708367460431,-283.527284,0.00029398,2]
[314459966,1708367460439,-177.104667,0.00029398,2]
[314459968,1708367460449,-452.717241,0.00029431,2]
[314459970,1708367460459,-155.694993,0.00029526,2]
[314459972,1708367460469,-266.303242,0.00029526,2]
[314459974,1708367460479,-405.844811,0.00029526,2]
[314459976,1708367460488,-601.123714,0.00029526,2]
[314459978,1708367460499,-677.3,0.00029588,2]
[314459981,1708367460509,-500.0,0.00029589,2]
[314459983,1708367460519,-912.93,0.00029589,2]
[314459985,1708367460529,-811.21,0.00029589,2]
[314459987,1708367460538,-500.0,0.00029589,2]
[314459989,1708367460549,-846.15,0.00029589,2]
[314459990,1708367460559,-500.0,0.00029589,2]
[314459993,1708367460569,-500.0,0.00029589,2]
[314459995,1708367460580,-375.80055415,0.00029589,2]
[314459997,1708367460590,-500.0,0.00029589,2]
[314459998,1708367460599,-500.0,0.00029589,2]
[314460001,1708367460610,-519.57,0.00029589,2]
[314460002,1708367460620,-500.0,0.00029589,2]
[314460004,1708367460633,-500.0,0.00029589,15]
[314460006,1708367460643,-500.0,0.00029589,2]
[314460009,1708367460652,-500.0,0.00029589,2]
[314460011,1708367460662,-1057.96,0.00029589,2]
[314460012,1708367460673,-500.0,0.00029589,2]
[314460014,1708367460683,-500.0,0.00029589,2]
[314460017,1708367460693,-500.0,0.00029589,2]
[314460018,1708367460702,-766.65,0.00029589,2]
[314460021,1708367460712,-500.0,0.00029589,2]
[314460023,1708367460721,-279.1974717,0.00029589,2]
[314460025,1708367460730,-2644.18,0.00029589,2]
[314460027,1708367460740,-1570.66,0.00029589,2]
[314460029,1708367460749,-500.0,0.00029589,2]
[314460031,1708367460758,-500.0,0.00029589,2]
[314460033,1708367460767,-578.18,0.00029589,2]
[314460035,1708367460776,-1176.49,0.00029589,2]
[314460037,1708367460785,-500.0,0.00029589,2]
[314460039,1708367460796,-500.0,0.00029589,2]
[314460041,1708367460805,-500.0,0.00029589,2]
[314460043,1708367460815,-500.0,0.00029589,2]
[314460045,1708367460824,-500.0,0.00029589,2]
[314460047,1708367460833,-500.0,0.00029589,2]
[314460049,1708367460843,-500.0,0.00029589,2]
[314460051,1708367460852,-500.0,0.00029589,2]
[314460053,1708367460861,-500.0,0.00029589,2]
[314460055,1708367460870,-787.53,0.00029589,2]
[314460057,1708367460879,-500.0,0.00029589,2]
[314460059,1708367460888,-500.0,0.00029589,2]
[314460061,1708367460898,-500.0,0.00029589,2]
[314460063,1708367460907,-500.0,0.00029589,2]
[314460065,1708367460916,-1043.11,0.00029589,2]
[314460067,1708367460925,-1874.04,0.00029589,2]
[314460069,1708367460934,-500.0,0.00029589,2]
[314460071,1708367460944,-603.72,0.00029589,2]
[314460073,1708367460952,-500.0,0.00029589,2]
[314460075,1708367460963,-500.0,0.00029589,2]